fUST/lending_fUST_20250428
["ID","MTS","AMOUNT","RATE_DAILY","PERIOD"]
[359227860,1745845832661,-528.7636833,0.000199,2]
[359227861,1745845832670,-151.0,0.00019954,2]
[359227862,1745845832681,-11676.55748009,0.000201,2]
[359227863,1745845832695,-12274.3871907,0.000201,2]
[359227864,1745845833855,1214.555368,0.00018488,2]
[359227865,1745845834354,1214.555368,0.00018488,2]
[359227866,1745845834816,1214.555368,0.00018488,2]
[359227867,1745845835336,1214.555368,0.00018488,2]
[359227868,1745845836360,1214.555368,0.00018488,2]
[359227869,1745845836863,1214.555368,0.00018488,2]
[359227871,1745845837319,1214.555368,0.00018488,2]
[359227886,1745845837692,-1806.41131233,0.000201,2]
[359227891,1745845837747,-1614.83479386,0.000201,2]
[359227894,1745845837759,-416.351307,0.000201,2]
[359227896,1745845837771,-708.43795877,0.000201,2]
[359227898,1745845837783,-813.62704925,0.000201,2]
[359227901,1745845837802,-4063.69772856,0.000201,2]
[359227906,1745845837843,1214.555368,0.00018488,2]
[359227911,1745845838425,1214.555368,0.00018488,2]
[359227912,1745845838963,1214.555368,0.00018488,2]
[359227913,1745845839385,1214.555368,0.00018488,2]
[359227917,1745845839850,1214.555368,0.00018488,2]
[359227921,1745845840023,-10598.5326794,0.000201,2]
[359227923,1745845840079,-994.5,0.000201,2]
[359227924,1745845840093,-1240.68611022,0.000201,2]
[359227925,1745845840246,1214.555368,0.00018488,2]
[359227926,1745845840691,1214.555368,0.00018488,2]
[359227927,1745845841139,1214.555368,0.00018488,2]
[359227928,1745845842176,-1214.555368,0.00018488,2]
[359227929,1745845842198,-1214.555368,0.00018488,2]
[359227939,1745845842588,1214.555368,0.00018488,2]
[359227944,1745845843062,1214.555368,0.00018488,2]
[359227945,1745845843544,1214.555363,0.00018488,2]
[359227963,1745845845779,-3791.97638982,0.000201,2]
[359227964,1745845845788,-1233.32218299,0.00020157,2]
[359227965,1745845845798,-300.0,0.00020161,2]
[359227966,1745845845911,-740.5920688,0.00020856,2]
[359227967,1745845845921,-182.4479967,0.00021023,2]
[359227969,1745845845930,-29984.15903959,0.000225,2]
[359227972,1745845845954,-20015.84096041,0.000225,2]
[359227974,1745845845963,-182.0,0.000226,4]
[359227976,1745845845972,-182.0,0.000226,4]
[359227978,1745845845981,-182.0,0.000226,2]
[359227980,1745845845990,-182.0,0.000226,2]
[359227982,1745845846000,-177.75727809,0.000226,2]
[359227983,1745845846009,-463.38036237,0.00023573,2]
[359227985,1745845846019,-550.92717629,0.00023892,2]
[359227986,1745845846027,-911.67396802,0.00023952,2]
[359227987,1745845846036,-1000.0,0.00024658,14]
[359227988,1745845846046,-1000.0,0.00024658,14]
[359227989,1745845846055,-1000.0,0.00024658,14]
[359227990,1745845846065,-1000.0,0.00024658,14]
[359227991,1745845846074,-1000.0,0.00024658,14]
[359227992,1745845846083,-1000.0,0.00024658,14]
[359227993,1745845846093,-1000.0,0.00024658,14]
[359227994,1745845846105,-1000.0,0.00024658,14]
[359227995,1745845846114,-1000.0,0.00024658,14]
[359227996,1745845846122,-1000.0,0.00024658,14]
[359227997,1745845846132,-1000.0,0.00024658,14]
[359227998,1745845846140,-1000.0,0.00024658,14]
[359227999,1745845846150,-1000.0,0.00024658,14]
[359228000,1745845846159,-1000.0,0.00024658,14]
[359228001,1745845846168,-1000.0,0.00024658,14]
[359228002,1745845846178,-859.528375,0.00024658,14]
[359228003,1745845846187,-500.0,0.00024773,2]
[359228004,1745845846196,-389.9085007,0.00024798,2]
[359228005,1745845846205,-182.0,0.000248,5]
[359228006,1745845846215,-182.0,0.000248,3]
[359228007,1745845846224,-182.0,0.000248,7]
[359228008,1745845846233,-500.0,0.00024873,2]
[359228009,1745845846243,-500.0,0.00024873,2]
[359228010,1745845846253,-500.0,0.00024873,2]
[359228011,1745845846262,-500.0,0.00024873,2]
[359228012,1745845846272,-500.0,0.00024873,2]
[359228013,1745845846281,-500.0,0.00024873,2]
[359228014,1745845846290,-5000.0,0.000249,10]
[359228015,1745845846299,-151.0,0.000249,7]
[359228016,1745845846308,-151.0,0.000249,7]
[359228017,1745845846318,-142283.99065588,0.000249,2]
[359228018,1745845846598,-6348.83102602,0.000249,2]
[359228019,1745845865149,294.19583401,0.00017913,2]
[359228020,1745845882356,500.0,0.00018487,2]
[359228021,1745845882686,500.0,0.00018487,2]
[359228022,1745845883536,500.0,0.00018487,2]
[359228023,1745845883857,500.0,0.00018487,2]
[359228024,1745845884195,500.0,0.00018487,2]
[359228025,1745845884521,500.0,0.00018487,2]
[359228026,1745845884853,558.06435942,0.00018487,2]
[359228027,1745845891976,289.417378,0.00018488,2]
[359228028,1745845892415,289.417378,0.00018488,2]
[359228029,1745845892815,289.417378,0.00018488,2]
[359228030,1745845893365,289.417378,0.00018488,2]
[359228031,1745845893633,289.417378,0.00018488,2]
[359228032,1745845894026,289.417378,0.00018488,2]
[359228033,1745845894471,289.417378,0.00018488,2]
[359228034,1745845894925,289.417378,0.00018488,2]
[359228035,1745845895970,289.417378,0.00018488,2]
[359228036,1745845896473,289.417378,0.00018488,2]
[359228037,1745845896915,289.417378,0.00018488,2]
[359228038,1745845897845,289.417378,0.00018488,2]
[359228039,1745845898255,289.417378,0.00018488,2]
[359228040,1745845898714,289.417378,0.00018488,2]
[359228041,1745845899174,289.417378,0.00018488,2]
[359228042,1745845899640,289.417378,0.00018488,2]
[359228043,1745845900010,289.417378,0.00018488,2]
[359228044,1745845900522,289.417378,0.00018488,2]
[359228045,1745845900854,289.417378,0.00018488,2]
[359228046,1745845901238,289.417382,0.00018488,2]
[359228047,1745845902349,500.0,0.00018487,2]
[359228048,1745845902406,484.52867569,0.00018487,2]
[359228049,1745845902452,500.0,0.00018487,2]
[359228050,1745845902522,500.0,0.00018487,2]
[359228051,1745845909608,151.0,0.00018488,2]
[359228052,1745845909993,151.0,0.00018488,2]
[359228053,1745845910392,151.0,0.00018488,2]
[359228054,1745845910798,151.0,0.00018488,2]
[359228055,1745845911225,271.660604,0.00018488,2]
[359228058,1745846141150,181.10293744,6.3e-07,2]
[359228224,1745846441933,181.10293743,6.3e-07,2]
[359228226,1745846592253,-272.0,0.00023,5]
[359228227,1745846592276,-1887.82904547,0.00023081,2]
[359228228,1745846592298,-4595.8791213,0.00023314,2]
[359228229,1745846592320,-193.280726,0.00023674,2]
[359228230,1745846592343,-182.0,0.00023898,2]
[359228231,1745846592367,-300.0,0.00023898,2]
[359228232,1745846592391,-21233.0548893,0.00023899,2]
[359228233,1745846592417,-700.0,0.00024,2]
[359228234,1745846592439,-973.02016702,0.00024773,2]
[359228235,1745846592463,-8103.16297649,0.00024873,2]
[359228236,1745846592487,-615.84367057,0.00024899,2]
[359228237,1745846592510,-608.6294826,0.00024899,2]
[359228238,1745846592538,-500.0,0.00024899,2]
[359228239,1745846592563,-231.96438134,0.00024899,2]
[359228240,1745846592589,-500.0,0.00024899,2]
[359228241,1745846592615,-500.0,0.00024899,2]
[359228242,1745846592641,-500.0,0.00024899,2]
[359228243,1745846592667,-500.0,0.00024899,2]
[359228244,1745846592692,-500.0,0.00024899,2]
[359228245,1745846592720,-500.0,0.00024899,2]
[359228246,1745846592748,-500.0,0.00024899,2]
[359228247,1745846592777,-500.0,0.00024899,2]
[359228248,1745846592807,-500.0,0.00024899,2]
[359228249,1745846592835,-500.0,0.00024899,2]
[359228250,1745846592863,-500.0,0.00024899,2]
[359228251,1745846592890,-500.0,0.00024899,2]
[359228252,1745846592917,-500.0,0.00024899,2]
[359228253,1745846592945,-500.0,0.00024899,2]
[359228254,1745846592973,-500.0,0.00024899,2]
[359228255,1745846593001,-500.0,0.00024899,2]
[359228256,1745846593031,-500.0,0.00024899,2]
[359228257,1745846593057,-500.0,0.00024899,2]
[359228258,1745846593083,-500.0,0.00024899,2]
[359228259,1745846593110,-500.0,0.00024899,2]
[359228260,1745846593137,-500.0,0.00024899,2]
[359228261,1745846593163,-500.0,0.00024899,2]
[359228262,1745846593188,-500.0,0.00024899,2]
[359228263,1745846593213,-500.0,0.00024899,2]
[359228264,1745846593240,-500.0,0.00024899,2]
[359228265,1745846593268,-500.0,0.00024899,2]
[359228266,1745846593294,-500.0,0.00024899,2]
[359228267,1745846593320,-398.1466462,0.00024899,2]
[359228268,1745846593346,-500.0,0.00024899,2]
[359228269,1745846593487,-500.0,0.00024899,2]
[359228270,1745846593516,-500.0,0.00024899,2]
[359228271,1745846593544,-500.0,0.00024899,2]
[359228272,1745846593571,-500.0,0.00024899,2]
[359228273,1745846593597,-250.0,0.00024899,2]
[359228274,1745846593625,-511.13822719,0.000249,5]
[359228275,1745846593650,-500.0,0.00025,30]
[359228276,1745846593673,-500.0,0.00025,30]
[359228277,1745846593697,-698.20276281,0.00025,30]
[359228278,1745846593722,-180.0,0.00025,10]
[359228279,1745846593747,-1630.06815672,0.00025,14]
[359228285,1745846917073,6003.48788126,0.00019,20]
[359228286,1745846918240,3485.75370673,0.0002,20]
[359228314,1745847031849,-582.72219573,0.000176,2]
[359228315,1745847031859,-1091.0,0.00021,2]
[359228316,1745847031869,-1700.0,0.00023,10]
[359228317,1745847031882,-209.7293621,0.0002499,2]
[359228318,1745847031892,-369.93184328,0.00025,14]
[359228319,1745847031901,-352.14761866,0.00025,2]
[359228320,1745847031913,-800.0,0.00025,3]
[359228321,1745847031923,-2000.0,0.00025,4]
[359228322,1745847031933,-500.0,0.00025933,2]
[359228323,1745847031943,-500.0,0.00025933,2]
[359228324,1745847031953,-458.64707754,0.00025933,2]
[359228325,1745847031962,-300.0,0.00025933,2]
[359228326,1745847031972,-160.0,0.00025955,2]
[359228327,1745847031981,-810.0,0.00026,4]
[359228328,1745847031991,-500.0,0.00026,30]
[359228330,1745847032001,-500.0,0.00026,30]
[359228332,1745847032010,-500.0,0.00026,30]
[359228333,1745847032019,-500.0,0.00026,30]
[359228334,1745847032028,-500.0,0.00026175,2]
[359228337,1745847032038,-383.02322917,0.0002686,2]
[359228341,1745847032047,-160.0,0.00027,3]
[359228344,1745847032057,-313.28589057,0.00027,3]
[359228345,1745847032067,-717.47013971,0.000273,2]
[359228346,1745847032182,-12291.94592153,0.000273,2]
[359228347,1745847032212,-9850.78146586,0.000273,2]
[359228353,1745847037886,-494.10028639,0.000249,5]
[359228354,1745847037896,-494.10028621,0.00025417,6]
[359228355,1745847037905,-494.10028621,0.00025934,6]
[359228356,1745847037916,-494.10028621,0.00026452,6]
[359228357,1745847037928,-494.10028621,0.00026969,7]
[359228358,1745847037938,-500.0,0.00027299,2]
[359228359,1745847037948,-500.0,0.00027299,2]
[359228360,1745847037957,-464.81466462,0.00027299,2]
[359228361,1745847037967,-21209.8089341,0.000273,2]
[359228534,1745847046985,-7205.7580392,0.000273,2]
[359228547,1745847721434,267.88071313,0.000195,14]
[359228563,1745848238126,-151.0,0.00018585,2]
[359228565,1745848238135,-150.0,0.000239,2]
[359228567,1745848238153,-251.425028,0.00023958,2]
[359228569,1745848238163,-973.02016702,0.00024888,2]
[359228570,1745848238173,-166.91346257,0.00024888,2]
[359228571,1745848238183,-166.91346255,0.00024888,2]
[359228572,1745848238193,-166.91346255,0.00024889,2]
[359228574,1745848238202,-713.29808527,0.000249,5]
[359228576,1745848238212,-300.0,0.00024972,2]
[359228578,1745848238222,-300.0,0.00024972,2]
[359228580,1745848238232,-500.0,0.00024973,2]
[359228582,1745848238241,-500.0,0.00024973,2]
[359228584,1745848238251,-7542.56666162,0.00024973,2]
[359228587,1745848238268,-560.59631487,0.00024973,2]
[359228589,1745848238278,-500.0,0.00024973,2]
[359228591,1745848238291,-500.0,0.00024973,2]
[359228593,1745848238302,-500.0,0.00024973,2]
[359228595,1745848238311,-447.64129248,0.00024973,2]
[359228597,1745848238323,-52.35870752,0.00024973,2]
[359228599,1745848238332,-185.92614641,0.00024973,2]
[359228601,1745848238342,-73.77761096,0.00024973,2]
[359228603,1745848238355,-426.22238904,0.00024973,2]
[359228605,1745848238365,-500.0,0.00024973,2]
[359228606,1745848238375,-500.91052564,0.00024973,2]
[359228607,1745848238384,-500.0,0.00024973,2]
[359228609,1745848238395,-511.29337322,0.00024973,2]
[359228611,1745848238405,-500.0,0.00024973,2]
[359228613,1745848238414,-500.0,0.00024973,2]
[359228615,1745848238424,-500.0,0.00024973,2]
[359228617,1745848238433,-500.0,0.00024973,2]
[359228619,1745848238444,-500.0,0.00024973,2]
[359228621,1745848238454,-518.50183798,0.00024973,2]
[359228623,1745848238463,-500.0,0.00024987,2]
[359228625,1745848238473,-500.0,0.00024987,2]
[359228627,1745848238483,-256.18665108,0.00024987,2]
[359228629,1745848238493,-500.0,0.00024987,2]
[359228631,1745848238503,-273.3484808,0.00024987,2]
[359228633,1745848238513,-615.84367057,0.00024987,2]
[359228635,1745848238523,-500.0,0.00024987,2]
[359228637,1745848238532,-500.0,0.00024987,2]
[359228639,1745848238541,-500.0,0.00024987,2]
[359228640,1745848238550,-500.0,0.00024987,2]
[359228641,1745848238559,-500.0,0.00024987,2]
[359228642,1745848238568,-500.0,0.00024987,2]
[359228643,1745848238577,-500.0,0.00024987,2]
[359228644,1745848238587,-500.0,0.00024987,2]
[359228645,1745848238596,-500.0,0.00024987,2]
[359228646,1745848238605,-500.0,0.00024987,2]
[359228647,1745848238614,-500.0,0.00024987,2]
[359228649,1745848238626,-500.0,0.00024987,2]
[359228650,1745848238635,-500.0,0.00024987,2]
[359228652,1745848238647,-500.0,0.00024987,2]
[359228654,1745848238657,-222.72021077,0.00024987,2]
[359228656,1745848238667,-500.0,0.00024987,2]
[359228658,1745848238676,-500.0,0.00024987,2]
[359228660,1745848238686,-500.0,0.00024987,2]
[359228661,1745848238696,-500.0,0.00024987,2]
[359228662,1745848238705,-500.0,0.00024987,2]
[359228663,1745848238715,-500.0,0.00024987,2]
[359228664,1745848238723,-500.0,0.00024987,2]
[359228665,1745848238733,-500.0,0.00024987,2]
[359228667,1745848238743,-500.0,0.00024987,2]
[359228668,1745848238753,-500.0,0.00024987,2]
[359228669,1745848238762,-500.0,0.00024987,2]
[359228670,1745848238771,-500.0,0.00024987,2]
[359228671,1745848238782,-500.0,0.00024987,2]
[359228672,1745848238792,-500.0,0.00024987,2]
[359228673,1745848238802,-500.0,0.00024987,2]
[359228674,1745848238812,-500.0,0.00024987,2]
[359228675,1745848238822,-500.0,0.00024987,2]
[359228676,1745848238832,-500.0,0.00024987,2]
[359228677,1745848238842,-500.0,0.00024987,2]
[359228678,1745848238853,-469.6042225,0.00024987,2]
[359228679,1745848238862,-500.0,0.00024987,2]
[359228680,1745848238872,-500.0,0.00024987,2]
[359228681,1745848238882,-500.0,0.00024987,2]
[359228682,1745848238891,-500.0,0.00024987,2]
[359228683,1745848238902,-146955.50671807,0.00024988,2]
[359228684,1745848238915,-16177.35057766,0.00024988,2]
[359228685,1745848238961,-1954.08438252,0.00024988,2]
[359228686,1745848238985,-8879.6,0.00024988,2]
[359228687,1745848238997,-227899.24852526,0.00024988,2]
[359228688,1745848239006,-73641.98347741,0.00024989,2]
[359228689,1745848239017,-168250.29886059,0.00024989,2]
[359228690,1745848239026,-34556.0403339,0.00024989,2]
[359228691,1745848239036,-507.10087407,0.00024991,2]
[359228692,1745848239045,-500.0,0.00025,30]
[359228693,1745848239054,-40113.60651684,0.00025,30]
[359228694,1745848239066,-59886.39348316,0.00025,30]
[359228695,1745848239076,-840.59878455,0.00025,30]
[359228696,1745848239085,-160.0,0.00025,30]
[359228697,1745848239095,-151.0,0.00025,7]
[359228698,1745848239105,-156.338475,0.00025,7]
[359228699,1745848239115,-421.20781996,0.00025,30]
[359228700,1745848239127,-307.28,0.0002512,2]
[359228701,1745848239136,-24006.6452986,0.0002513,2]
[359228702,1745848239147,-500.0,0.00025173,2]
[359228703,1745848239157,-500.0,0.00025173,2]
[359228704,1745848239166,-151.0,0.0002519,7]
[359228705,1745848239175,-151.0,0.0002519,7]
[359228706,1745848239185,-151.0,0.0002519,7]
[359228707,1745848239283,-597.205535,0.0002519,2]
[359228708,1745848239296,-151.0,0.0002519,2]
[359228709,1745848239306,-597.205535,0.0002519,2]
[359228710,1745848239315,-151.620432,0.0002519,7]
[359228711,1745848239325,-199.826802,0.0002519,7]
[359228712,1745848239335,-35.87648379,0.0002519,7]
[359228713,1745848239354,-205.22495621,0.0002519,7]
[359228714,1745848239364,-151.0,0.0002519,7]
[359228715,1745848239373,-106.61192968,0.0002519,7]
[359228716,1745848239399,-166.91346255,0.00024889,2]
[359228717,1745848239409,-44.38807032,0.0002519,7]
[359228718,1745848239419,-151.0,0.000252,7]
[359228719,1745848239428,-713.29808513,0.00025417,6]
[359228720,1745848239438,-713.29808513,0.00025934,6]
[359228721,1745848239447,-698.20276281,0.00026,30]
[359228722,1745848239457,-500.0,0.00026,30]
[359228723,1745848239466,-713.29808513,0.00026452,6]
[359228724,1745848239477,-307.28,0.00026657,2]
[359228725,1745848239486,-2840.18463637,0.00026668,2]
[359228726,1745848239495,-152.0,0.00026798,3]
[359228727,1745848239505,-152.0,0.00026798,3]
[359228728,1745848239514,-152.0,0.00026798,3]
[359228729,1745848239523,-152.0,0.00026798,3]
[359228730,1745848239533,-152.0,0.00026798,3]
[359228731,1745848239542,-152.0,0.00026798,3]
[359228732,1745848239551,-152.0,0.00026798,3]
[359228733,1745848239560,-152.0,0.00026798,3]
[359228734,1745848239570,-152.0,0.00026798,3]
[359228735,1745848239579,-152.0,0.00026798,3]
[359228736,1745848239588,-152.0,0.00026798,3]
[359228737,1745848239597,-152.0,0.00026798,3]
[359228738,1745848239607,-152.0,0.00026798,3]
[359228739,1745848239617,-152.0,0.00026798,3]
[359228740,1745848239626,-269.10628812,0.00026798,3]
[359228741,1745848239635,-151.0,0.00026798,7]
[359228742,1745848239645,-1291.415575,0.000268,2]
[359228743,1745848239655,-300.92831776,0.00026898,2]
[359228744,1745848239665,-713.29808513,0.00026969,7]
[359228745,1745848239674,-500.0,0.00026973,2]
[359228746,1745848239683,-500.0,0.00026973,2]
[359228747,1745848239693,-500.0,0.00026973,2]
[359228748,1745848239702,-307.28,0.00026978,2]
[359228749,1745848239712,-249.059738,0.00026979,7]
[359228750,1745848239722,-151.0,0.00026979,7]
[359228751,1745848239731,-151.0,0.00026979,7]
[359228752,1745848239741,-597.205535,0.00026979,2]
[359228753,1745848239751,-151.0,0.00026979,2]
[359228754,1745848239760,-597.205535,0.00026979,2]
[359228755,1745848239770,-151.0,0.00026979,7]
[359228756,1745848239779,-151.0,0.00026979,7]
[359228757,1745848239788,-151.0,0.0002698,7]
[359228758,1745848239798,-151.0,0.0002698,7]
[359228759,1745848239808,-597.205535,0.0002698,2]
[359228760,1745848239817,-151.0,0.0002698,2]
[359228761,1745848239827,-597.205535,0.0002698,2]
[359228762,1745848239836,-151.0,0.0002698,7]
[359228764,1745848239846,-151.0,0.0002698,7]
[359228766,1745848239855,-356.62277722,0.00026987,2]
[359228768,1745848239864,-151.0,0.0002699,7]
[359228770,1745848239873,-151.0,0.0002699,7]
[359228771,1745848239883,-179.88934,0.0002699,7]
[359228772,1745848239892,-151.0,0.0002699,7]
[359228773,1745848239903,-151.0,0.0002699,7]
[359228774,1745848239912,-973.02016695,0.00026999,2]
[359228775,1745848239921,-5007.41801422,0.00027,2]
[359228776,1745848239931,-151.0,0.00027,7]
[359228777,1745848239940,-151.0,0.00027,7]
[359228778,1745848239949,-151.0,0.00027,7]
[359228779,1745848239958,-21482.41973839,0.00027,30]
[359228780,1745848239970,-68834.06373263,0.00027,30]
[359228781,1745848240509,-29.81205467,0.00027,30]
[359228782,1745848240519,-151.0,0.00027,7]
[359228783,1745848240529,-141.25014089,0.00027,7]
[359228900,1745848246317,-399.84975707,0.00024888,2]
[359228901,1745848246326,-166.91346255,0.00024889,2]
[359228902,1745848246336,-151.0,0.00025,7]
[359228903,1745848246346,-151.0,0.00026798,7]
[359228904,1745848246356,-9.74985911,0.00027,7]
[359228905,1745848246367,-486.42957202,0.00027,2]
[359228906,1745848246514,-110.77596298,0.00027,2]
[359228907,1745848246534,-151.0,0.00027,2]
[359228908,1745848246554,-597.205535,0.00027,2]
[359228909,1745848246571,-151.0,0.00027,7]
[359228910,1745848246589,-151.0,0.00027,7]
[359228911,1745848246603,-151.0,0.00027,7]
[359228912,1745848246621,-313.28589057,0.00027,3]
[359228913,1745848246638,-233.581022,0.00027,7]
[359228914,1745848246661,-4010.71741723,0.00027027,2]
[359228931,1745849150372,10002.0,0.00021,10]
[359228985,1745849432391,-2510.04238212,0.000185,2]
[359228987,1745849432401,-902.0,0.00018899,2]
[359228989,1745849432410,-5796.68662732,0.000189,2]
[359228990,1745849432420,-269.8818557,0.00022371,2]
[359228991,1745849432429,-729.76512523,0.00023161,2]
[359228992,1745849432439,-300.0,0.00023259,2]
[359228993,1745849432449,-166.0,0.00023259,2]
[359228994,1745849432458,-6739.3015365,0.00023261,2]
[359228995,1745849432468,-5000.0,0.00023261,2]
[359228996,1745849432477,-691.21119644,0.00023261,2]
[359229021,1745849438685,-4308.78880356,0.00023261,2]
[359229022,1745849438695,-4808.98951592,0.00023261,2]
[359229023,1745849438746,-191.01048408,0.00023261,2]
[359229024,1745849438755,-266.37953348,0.00023261,2]
[359229025,1745849438767,-2037.8462695,0.00023261,2]
[359229026,1745849438778,-2695.77419702,0.00023261,2]
[359229027,1745849438787,-130.67580298,0.00023273,2]
[359229082,1745849444535,-369.32419702,0.00023273,2]
[359229083,1745849444550,-500.0,0.00023273,2]
[359229084,1745849444565,-500.0,0.00023273,2]
[359229085,1745849444583,-540.18843072,0.000239,2]
[359229134,1745849446515,-5256.4981966,0.000239,2]
[359229135,1745849446525,-1557.42182904,0.000239,5]
[359229136,1745849446534,-608.6294826,0.0002398,2]
[359229137,1745849446543,-500.0,0.0002398,2]
[359229138,1745849446552,-500.0,0.0002398,2]
[359229140,1745849446561,-500.0,0.0002398,2]
[359229141,1745849446571,-467.45049176,0.0002398,2]
[359229144,1745849446712,-32.54950824,0.0002398,2]
[359229145,1745849446723,-500.0,0.0002398,2]
[359229147,1745849446732,-4.88192376,0.0002398,2]
[359229199,1745850632777,-531.51062302,0.000175,4]
[359229201,1745850632787,-412.87839344,0.00018,2]
[359229203,1745850632796,-300.0,0.00019999,2]
[359229205,1745850632805,-8999.85918445,0.0002,2]
[359229206,1745850632815,-420.0,0.00021777,2]
[359229207,1745850632825,-1932.22887577,0.000218,2]
[359229208,1745850632838,-2101.50750939,0.000219,3]
[359229209,1745850632848,-159.8977623,0.00022,2]
[359229210,1745850632857,-3308.97440213,0.00022,2]
[359229211,1745850632867,-2101.50750914,0.00022521,4]
[359229212,1745850632876,-277.0,0.00023,2]
[359229213,1745850632885,-2101.50750914,0.00023141,4]
[359229214,1745850632895,-577.70570578,0.00023492,2]
[359229215,1745850632905,-303.0,0.000236,2]
[359229216,1745850632914,-587.0,0.00023712,2]
[359229217,1745850632925,-2101.50750914,0.00023762,4]
[359229218,1745850632935,-2101.50750914,0.00024383,5]
[359229219,1745850632944,-11535.8412988,0.00024449,2]
[359229220,1745850632953,-809.3236783,0.00024457,2]
[359229221,1745850632962,-501.0,0.00024899,2]
[359229222,1745850632971,-501.09165145,0.00024973,2]
[359229223,1745850632980,-500.0,0.00024973,2]
[359229224,1745850632989,-500.0,0.00024973,2]
[359229225,1745850632998,-500.0,0.00024973,2]
[359229226,1745850633006,-500.0,0.00024973,2]
[359229227,1745850633015,-167.22621317,0.00024999,2]
[359229228,1745850633028,-500.0,0.00024999,2]
[359229229,1745850633037,-529.33065576,0.00024999,2]
[359229230,1745850633046,-391.34393656,0.00024999,2]
[359229231,1745850633055,-5527.87494363,0.00025,2]
[359229238,1745850638564,-500.0,0.00024999,2]
[359229240,1745850638574,-500.0,0.00024999,2]
[359229242,1745850638583,-500.0,0.00024999,2]
[359229244,1745850638593,-500.0,0.00024999,2]
[359229246,1745850638603,-500.0,0.00024999,2]
[359229248,1745850638612,-310.4302689,0.00024999,2]
[359229250,1745850638621,-500.0,0.00024999,2]
[359229252,1745850638631,-500.0,0.00024999,2]
[359229254,1745850638641,-421.60554536,0.00024999,2]
[359229256,1745850638652,-78.39445464,0.00024999,2]
[359229258,1745850638662,-500.0,0.00024999,2]
[359229260,1745850638671,-500.0,0.00024999,2]
[359229261,1745850638680,-500.0,0.00024999,2]
[359229262,1745850638690,-500.0,0.00024999,2]
[359229263,1745850638698,-291.8308855,0.00024999,2]
[359229264,1745850638722,-208.1691145,0.00024999,2]
[359229265,1745850638732,-548.73185801,0.00024999,2]
[359229266,1745850638742,-500.0,0.00024999,2]
[359229267,1745850638751,-500.0,0.00024999,2]
[359229268,1745850638760,-500.0,0.00024999,2]
[359229269,1745850638770,-29.39576044,0.00024999,2]
[359229271,1745850638781,-470.60423956,0.00024999,2]
[359229273,1745850638790,-500.0,0.00024999,2]
[359229275,1745850638799,-317.96951226,0.00024999,2]
[359229276,1745850638808,-500.0,0.00024999,2]
[359229277,1745850638817,-500.0,0.00024999,2]
[359229278,1745850638827,-500.0,0.00024999,2]
[359229279,1745850638836,-500.0,0.00024999,2]
[359229280,1745850638846,-500.0,0.00024999,2]
[359229281,1745850638856,-500.0,0.00024999,2]
[359229282,1745850638865,-280.99343948,0.00024999,2]
[359229283,1745850638877,-219.00656052,0.00024999,2]
[359229284,1745850638886,-500.0,0.00024999,2]
[359229285,1745850638895,-500.0,0.00024999,2]
[359229286,1745850638903,-500.0,0.00024999,2]
[359229287,1745850638913,-500.0,0.00024999,2]
[359229288,1745850638922,-500.0,0.00024999,2]
[359229289,1745850638931,-500.0,0.00024999,2]